fUST/lending_fUST_20250521
["ID","MTS","AMOUNT","RATE_DAILY","PERIOD"]
[361779239,1747775438872,-430.0,0.00017808,2]
[361779240,1747775438884,-543.73,0.00017808,2]
[361779241,1747775438893,-430.0,0.00017808,2]
[361779242,1747775438903,-430.0,0.00017808,2]
[361779243,1747775438913,-430.0,0.00017808,2]
[361779244,1747775438922,-669.88,0.00017808,2]
[361779245,1747775438932,-430.0,0.00017808,2]
[361779246,1747775438942,-430.0,0.00017808,2]
[361779247,1747775438951,-430.0,0.00017808,2]
[361779248,1747775438961,-430.0,0.00017808,2]
[361779249,1747775438971,-425.01,0.00017808,2]
[361779250,1747775438980,-430.0,0.00017808,2]
[361779251,1747775438990,-319.23,0.00017808,2]
[361779252,1747775438999,-483.74,0.00017808,2]
[361779253,1747775439009,-430.0,0.00017808,2]
[361779254,1747775439019,-894.16,0.00017808,2]
[361779255,1747775439028,-430.0,0.00017808,2]
[361779256,1747775439038,-998.6,0.00017808,2]
[361779257,1747775439047,-430.0,0.00017808,2]
[361779258,1747775439057,-430.0,0.00017808,2]
[361779259,1747775439066,-430.0,0.00017808,2]
[361779260,1747775439076,-430.0,0.00017808,2]
[361779261,1747775439085,-430.0,0.00017808,2]
[361779262,1747775439095,-459.9,0.00017808,2]
[361779263,1747775439104,-573.65,0.00017808,2]
[361779264,1747775439114,-430.0,0.00017808,2]
[361779265,1747775439123,-4309.86131901,0.00017831,2]
[361779266,1747775439134,-420.0,0.00017963,2]
[361779267,1747775439143,-210.0563189,0.00018055,2]
[361779268,1747775439153,-430.0,0.00018082,2]
[361779269,1747775439163,-430.0,0.00018082,2]
[361779270,1747775439172,-430.0,0.00018082,2]
[361779271,1747775439181,-430.0,0.00018082,2]
[361779272,1747775439192,-430.0,0.00018082,2]
[361779273,1747775439205,-446.13,0.00018082,2]
[361779274,1747775439214,-482.26,0.00018082,2]
[361779275,1747775439224,-430.0,0.00018082,2]
[361779276,1747775439234,-430.0,0.00018082,2]
[361779277,1747775439245,-430.0,0.00018082,2]
[361779278,1747775439255,-471.13,0.00018082,2]
[361779279,1747775439265,-430.0,0.00018082,2]
[361779280,1747775439276,-1047.38,0.00018082,2]
[361779281,1747775439287,-430.0,0.00018082,2]
[361779282,1747775439296,-225.17291777,0.00018082,2]
[361779283,1747775439306,-430.0,0.00018082,2]
[361779284,1747775439315,-430.0,0.00018082,2]
[361779285,1747775439325,-430.0,0.00018082,2]
[361779286,1747775439334,-430.0,0.00018082,2]
[361779287,1747775439343,-518.89,0.00018082,2]
[361779288,1747775439353,-430.0,0.00018082,2]
[361779289,1747775439364,-469.67,0.00018082,2]
[361779290,1747775439374,-803.42,0.00018082,2]
[361779291,1747775439388,-877.67,0.00018082,2]
[361779292,1747775439398,-430.0,0.00018082,2]
[361779293,1747775439407,-430.0,0.00018082,2]
[361779294,1747775439417,-430.0,0.00018082,2]
[361779295,1747775439426,-453.94,0.00018082,2]
[361779296,1747775439436,-1865.77,0.00018082,2]
[361779297,1747775439446,-2263.91,0.00018082,2]
[361779298,1747775439457,-430.0,0.00018082,2]
[361779299,1747775439466,-430.0,0.00018082,2]
[361779300,1747775439477,-430.0,0.00018082,2]
[361779301,1747775439486,-430.0,0.00018082,2]
[361779302,1747775439496,-430.0,0.00018082,2]
[361779303,1747775439507,-430.0,0.00018082,2]
[361779304,1747775439517,-1962.0,0.00018082,2]
[361779305,1747775439527,-430.0,0.00018082,2]
[361779306,1747775439537,-526.49,0.00018082,2]
[361779307,1747775439547,-430.0,0.00018082,2]
[361779308,1747775439557,-1558.65,0.00018082,2]
[361779309,1747775439567,-480.96,0.00018082,2]
[361779310,1747775439576,-596.99,0.00018082,2]
[361779311,1747775439586,-452.43,0.00018082,2]
[361779312,1747775439596,-430.0,0.00018082,2]
[361779313,1747775439605,-543.73,0.00018082,2]
[361779314,1747775439615,-430.0,0.00018082,2]
[361779315,1747775439625,-430.0,0.00018082,2]
[361779316,1747775439636,-430.0,0.00018082,2]
[361779317,1747775439647,-669.88,0.00018082,2]
[361779319,1747775439657,-430.0,0.00018082,2]
[361779320,1747775439667,-430.0,0.00018082,2]
[361779321,1747775439676,-430.0,0.00018082,2]
[361779322,1747775439687,-430.0,0.00018082,2]
[361779323,1747775439697,-430.0,0.00018082,2]
[361779324,1747775439707,-483.74,0.00018082,2]
[361779325,1747775439717,-430.0,0.00018082,2]
[361779327,1747775439727,-894.16,0.00018082,2]
[361779328,1747775439736,-532.86,0.00018082,2]
[361779329,1747775439746,-998.6,0.00018082,2]
[361779330,1747775439755,-430.0,0.00018082,2]
[361779331,1747775439765,-203.29,0.00018082,2]
[361779332,1747775439775,-430.0,0.00018082,2]
[361779333,1747775439786,-430.0,0.00018082,2]
[361779334,1747775439795,-430.0,0.00018082,2]
[361779335,1747775439805,-459.9,0.00018082,2]
[361779336,1747775439815,-573.65,0.00018082,2]
[361779337,1747775439825,-430.0,0.00018082,2]
[361779338,1747775439835,-4309.86131901,0.00018141,2]
[361779339,1747775439844,-151.0,0.00018356,2]
[361779343,1747775440033,-430.0,0.00018356,2]
[361779346,1747775440045,-430.0,0.00018356,2]
[361779348,1747775440055,-430.0,0.00018356,2]
[361779349,1747775440065,-430.0,0.00018356,2]
[361779352,1747775440075,-430.0,0.00018356,2]
[361779354,1747775440084,-446.13,0.00018356,2]
[361779356,1747775440094,-370.3,0.00018356,2]
[361779358,1747775440104,-430.0,0.00018356,2]
[361779360,1747775440114,-430.0,0.00018356,2]
[361779362,1747775440123,-471.13,0.00018356,2]
[361779364,1747775440136,-430.0,0.00018356,2]
[361779365,1747775440146,-1047.38,0.00018356,2]
[361779367,1747775440155,-430.0,0.00018356,2]
[361779369,1747775440165,-430.0,0.00018356,2]
[361779371,1747775440175,-430.0,0.00018356,2]
[361779373,1747775440185,-433.79,0.00018356,2]
[361779376,1747775440196,-430.0,0.00018356,2]
[361779377,1747775440209,-518.89,0.00018356,2]
[361779379,1747775440218,-430.0,0.00018356,2]
[361779381,1747775440228,-469.67,0.00018356,2]
[361779383,1747775440239,-803.42,0.00018356,2]
[361779386,1747775440248,-877.67,0.00018356,2]
[361779388,1747775440258,-430.0,0.00018356,2]
[361779389,1747775440268,-430.0,0.00018356,2]
[361779391,1747775440279,-430.0,0.00018356,2]
[361779393,1747775440288,-453.94,0.00018356,2]
[361779395,1747775440298,-1865.77,0.00018356,2]
[361779397,1747775440308,-2263.91,0.00018356,2]
[361779399,1747775440318,-430.0,0.00018356,2]
[361779401,1747775440328,-188.23,0.00018356,2]
[361779403,1747775440338,-430.0,0.00018356,2]
[361779405,1747775440347,-430.0,0.00018356,2]
[361779407,1747775440357,-430.0,0.00018356,2]
[361779409,1747775440366,-1962.0,0.00018356,2]
[361779411,1747775440376,-447.14442165,0.00018356,2]
[361779413,1747775440387,-430.0,0.00018356,2]
[361779415,1747775440397,-526.49,0.00018356,2]
[361779417,1747775440406,-430.0,0.00018356,2]
[361779419,1747775440415,-1558.65,0.00018356,2]
[361779421,1747775440425,-480.96,0.00018356,2]
[361779423,1747775440434,-596.99,0.00018356,2]
[361779425,1747775440444,-452.43,0.00018356,2]
[361779427,1747775440454,-430.0,0.00018356,2]
[361779429,1747775440463,-543.73,0.00018356,2]
[361779431,1747775440473,-430.0,0.00018356,2]
[361779433,1747775440483,-430.0,0.00018356,2]
[361779435,1747775440492,-430.0,0.00018356,2]
[361779437,1747775440502,-669.88,0.00018356,2]
[361779438,1747775440511,-430.0,0.00018356,2]
[361779440,1747775440521,-430.0,0.00018356,2]
[361779442,1747775440531,-430.0,0.00018356,2]
[361779444,1747775440540,-430.0,0.00018356,2]
[361779446,1747775440550,-430.0,0.00018356,2]
[361779448,1747775440561,-483.74,0.00018356,2]
[361779450,1747775440571,-430.0,0.00018356,2]
[361779452,1747775440581,-894.16,0.00018356,2]
[361779454,1747775440591,-998.6,0.00018356,2]
[361779456,1747775440600,-430.0,0.00018356,2]
[361779458,1747775440609,-430.0,0.00018356,2]
[361779460,1747775440619,-430.0,0.00018356,2]
[361779462,1747775440630,-430.0,0.00018356,2]
[361779464,1747775440640,-459.9,0.00018356,2]
[361779466,1747775440649,-573.65,0.00018356,2]
[361779468,1747775440659,-4309.86131901,0.00018452,2]
[361779470,1747775440669,-430.0,0.0001863,2]
[361779472,1747775440679,-430.0,0.0001863,2]
[361779474,1747775440688,-443.32,0.0001863,2]
[361779476,1747775440698,-430.0,0.0001863,2]
[361779478,1747775440707,-172.46,0.0001863,2]
[361779480,1747775440716,-446.13,0.0001863,2]
[361779482,1747775440726,-430.0,0.0001863,2]
[361779484,1747775440735,-430.0,0.0001863,2]
[361779486,1747775440744,-471.13,0.0001863,2]
[361779488,1747775440753,-345.23,0.0001863,2]
[361779490,1747775440763,-1047.38,0.0001863,2]
[361779492,1747775440772,-430.0,0.0001863,2]
[361779494,1747775440782,-430.0,0.0001863,2]
[361779496,1747775440792,-430.0,0.0001863,2]
[361779498,1747775440801,-430.0,0.0001863,2]
[361779500,1747775440811,-518.89,0.0001863,2]
[361779502,1747775440820,-430.0,0.0001863,2]
[361779504,1747775440829,-469.67,0.0001863,2]
[361779506,1747775440839,-803.42,0.0001863,2]
[361779508,1747775440848,-877.67,0.0001863,2]
[361779510,1747775440857,-430.0,0.0001863,2]
[361779512,1747775440867,-430.0,0.0001863,2]
[361779514,1747775440875,-430.0,0.0001863,2]
[361779516,1747775440886,-453.94,0.0001863,2]
[361779518,1747775440895,-1865.77,0.0001863,2]
[361779519,1747775440905,-2263.91,0.0001863,2]
[361779521,1747775440914,-430.0,0.0001863,2]
[361779524,1747775440923,-430.0,0.0001863,2]
[361779525,1747775440933,-430.0,0.0001863,2]
[361779527,1747775440942,-430.0,0.0001863,2]
[361779529,1747775440951,-1962.0,0.0001863,2]
[361779531,1747775440961,-430.0,0.0001863,2]
[361779533,1747775440970,-526.49,0.0001863,2]
[361779535,1747775440980,-430.0,0.0001863,2]
[361779537,1747775440989,-1558.65,0.0001863,2]
[361779539,1747775440998,-480.96,0.0001863,2]
[361779541,1747775441009,-596.99,0.0001863,2]
[361779543,1747775441019,-452.43,0.0001863,2]
[361779545,1747775441029,-430.0,0.0001863,2]
[361779547,1747775441039,-543.73,0.0001863,2]
[361779549,1747775441049,-430.0,0.0001863,2]
[361779551,1747775441059,-430.0,0.0001863,2]
[361779553,1747775441069,-358.83258237,0.0001863,2]
[361779555,1747775441078,-669.88,0.0001863,2]
[361779557,1747775441088,-430.0,0.0001863,2]
[361779559,1747775441098,-430.0,0.0001863,2]
[361779561,1747775441107,-430.0,0.0001863,2]
[361779563,1747775441116,-430.0,0.0001863,2]
[361779565,1747775441126,-430.0,0.0001863,2]
[361779567,1747775441137,-483.74,0.0001863,2]
[361779569,1747775441146,-430.0,0.0001863,2]
[361779571,1747775441155,-894.16,0.0001863,2]
[361779573,1747775441165,-998.6,0.0001863,2]
[361779575,1747775441174,-430.0,0.0001863,2]
[361779577,1747775441183,-430.0,0.0001863,2]
[361779579,1747775441192,-430.0,0.0001863,2]
[361779580,1747775441204,-430.0,0.0001863,2]
[361779582,1747775441214,-459.9,0.0001863,2]
[361779584,1747775441223,-573.65,0.0001863,2]
[361779586,1747775441233,-4309.86131901,0.00018762,2]
[361779588,1747775441243,-253.90233183,0.00018841,2]
[361779590,1747775441252,-653.16758433,0.00018886,2]
[361779592,1747775441262,-1065.90437791,0.000189,2]
[361779594,1747775441272,-151.0,0.00018904,2]
[361779596,1747775441281,-430.0,0.00018904,2]
[361779598,1747775441291,-430.0,0.00018904,2]
[361779600,1747775441300,-430.0,0.00018904,2]
[361779602,1747775441310,-446.13,0.00018904,2]
[361779604,1747775441320,-430.0,0.00018904,2]
[361779606,1747775441329,-430.0,0.00018904,2]
[361779608,1747775441338,-471.13,0.00018904,2]
[361779610,1747775441348,-1047.38,0.00018904,2]
[361779612,1747775441358,-430.0,0.00018904,2]
[361779614,1747775441367,-430.0,0.00018904,2]
[361779616,1747775441376,-430.0,0.00018904,2]
[361779618,1747775441386,-430.0,0.00018904,2]
[361779620,1747775441395,-518.89,0.00018904,2]
[361779622,1747775441405,-430.0,0.00018904,2]
[361779624,1747775441414,-469.67,0.00018904,2]
[361779626,1747775441423,-803.42,0.00018904,2]
[361779628,1747775441432,-877.67,0.00018904,2]
[361779630,1747775441441,-430.0,0.00018904,2]
[361779632,1747775441451,-430.0,0.00018904,2]
[361779634,1747775441460,-430.0,0.00018904,2]
[361779636,1747775441469,-453.94,0.00018904,2]
[361779638,1747775441478,-1865.77,0.00018904,2]
[361779640,1747775441487,-2263.91,0.00018904,2]
[361779642,1747775441497,-430.0,0.00018904,2]
[361779644,1747775441506,-430.0,0.00018904,2]
[361779646,1747775441516,-430.0,0.00018904,2]
[361779648,1747775441525,-430.0,0.00018904,2]
[361779650,1747775441535,-1962.0,0.00018904,2]
[361779652,1747775441544,-430.0,0.00018904,2]
[361779654,1747775441553,-526.49,0.00018904,2]
[361779656,1747775441563,-430.0,0.00018904,2]
[361779658,1747775441572,-1558.65,0.00018904,2]
[361779660,1747775441581,-480.96,0.00018904,2]
[361779662,1747775441591,-596.99,0.00018904,2]
[361779664,1747775441600,-452.43,0.00018904,2]
[361779666,1747775441609,-430.0,0.00018904,2]
[361779668,1747775441619,-543.73,0.00018904,2]
[361779670,1747775441629,-430.0,0.00018904,2]
[361779672,1747775441639,-430.0,0.00018904,2]
[361779674,1747775441649,-669.88,0.00018904,2]
[361779676,1747775441659,-430.0,0.00018904,2]
[361779678,1747775441669,-430.0,0.00018904,2]
[361779679,1747775441679,-290.26,0.00018904,2]
[361779680,1747775441689,-430.0,0.00018904,2]
[361779681,1747775441699,-430.0,0.00018904,2]
[361779682,1747775441709,-483.74,0.00018904,2]
[361779683,1747775441719,-430.0,0.00018904,2]
[361779684,1747775441728,-894.16,0.00018904,2]
[361779685,1747775441738,-998.6,0.00018904,2]
[361779686,1747775441747,-430.0,0.00018904,2]
[361779687,1747775441756,-430.0,0.00018904,2]
[361779688,1747775441766,-430.0,0.00018904,2]
[361779689,1747775441775,-382.4,0.00018904,2]
[361779690,1747775441785,-459.9,0.00018904,2]
[361779691,1747775441794,-573.65,0.00018904,2]
[361779692,1747775441804,-4309.86131901,0.00019072,2]
[361779693,1747775441813,-430.0,0.00019178,2]
[361779694,1747775441824,-430.0,0.00019178,2]
[361779695,1747775441834,-183.28,0.00019178,2]
[361779696,1747775441844,-446.13,0.00019178,2]
[361779697,1747775441854,-430.0,0.00019178,2]
[361779698,1747775441864,-430.0,0.00019178,2]
[361779699,1747775441874,-471.13,0.00019178,2]
[361779700,1747775441884,-1047.38,0.00019178,2]
[361779701,1747775441894,-430.0,0.00019178,2]
[361779702,1747775441904,-430.0,0.00019178,2]
[361779703,1747775441914,-430.0,0.00019178,2]
[361779704,1747775441924,-430.0,0.00019178,2]
[361779705,1747775441935,-518.89,0.00019178,2]
[361779706,1747775441945,-430.0,0.00019178,2]
[361779707,1747775441954,-469.67,0.00019178,2]
[361779708,1747775441965,-803.42,0.00019178,2]
[361779709,1747775441975,-877.67,0.00019178,2]
[361779710,1747775441985,-430.0,0.00019178,2]
[361779711,1747775441995,-430.0,0.00019178,2]
[361779712,1747775442004,-430.0,0.00019178,2]
[361779714,1747775442013,-453.94,0.00019178,2]
[361779716,1747775442023,-1865.77,0.00019178,2]
[361779718,1747775442033,-2263.91,0.00019178,2]
[361779720,1747775442042,-430.0,0.00019178,2]
[361779722,1747775442052,-430.0,0.00019178,2]
[361779724,1747775442061,-430.0,0.00019178,2]
[361779726,1747775442070,-430.0,0.00019178,2]
[361779728,1747775442079,-1962.0,0.00019178,2]
[361779730,1747775442089,-430.0,0.00019178,2]
[361779732,1747775442098,-526.49,0.00019178,2]
[361779734,1747775442108,-306.23,0.00019178,2]
[361779736,1747775442117,-1558.65,0.00019178,2]
[361779738,1747775442126,-480.96,0.00019178,2]
[361779740,1747775442137,-596.99,0.00019178,2]
[361779742,1747775442147,-452.43,0.00019178,2]
[361779744,1747775442157,-531.37,0.00019178,2]
[361779746,1747775442167,-543.73,0.00019178,2]
[361779748,1747775442176,-430.0,0.00019178,2]
[361779750,1747775442185,-268.52,0.00019178,2]
[361779752,1747775442197,-669.88,0.00019178,2]
[361779754,1747775442206,-430.0,0.00019178,2]
[361779755,1747775442216,-430.0,0.00019178,2]
[361779757,1747775442226,-430.0,0.00019178,2]
[361779760,1747775442236,-430.0,0.00019178,2]
[361779761,1747775442246,-430.0,0.00019178,2]
[361779763,1747775442255,-483.74,0.00019178,2]
[361779765,1747775442265,-894.16,0.00019178,2]
[361779767,1747775442275,-998.6,0.00019178,2]
[361779769,1747775442285,-525.19,0.00019178,2]
[361779771,1747775442294,-430.0,0.00019178,2]
[361779773,1747775442303,-430.0,0.00019178,2]
[361779775,1747775442313,-459.9,0.00019178,2]
[361779777,1747775442322,-573.65,0.00019178,2]
[361779779,1747775442331,-155.0,0.00019178,2]
[361779781,1747775442340,-182.2109,0.00019178,2]
[361779783,1747775442350,-4309.86131901,0.00019383,2]
[361779785,1747775442359,-151.0,0.00019452,2]
[361779787,1747775442369,-430.0,0.00019452,2]
[361779789,1747775442378,-430.0,0.00019452,2]
[361779791,1747775442391,-446.13,0.00019452,2]
[361779793,1747775442400,-430.0,0.00019452,2]
[361779795,1747775442409,-430.0,0.00019452,2]
[361779801,1747775442418,-471.13,0.00019452,2]
[361779803,1747775442465,-1047.38,0.00019452,2]
[361779805,1747775442474,-430.0,0.00019452,2]
[361779807,1747775442484,-535.99003847,0.00019452,2]
[361779809,1747775442493,-430.0,0.00019452,2]
[361779811,1747775442502,-430.0,0.00019452,2]
[361779813,1747775442510,-518.89,0.00019452,2]
[361779815,1747775442519,-430.0,0.00019452,2]
[361779817,1747775442528,-469.67,0.00019452,2]
[361779819,1747775442537,-803.42,0.00019452,2]
[361779821,1747775442546,-877.67,0.00019452,2]
[361779823,1747775442556,-362.87,0.00019452,2]
[361779825,1747775442565,-430.0,0.00019452,2]
[361779826,1747775442574,-430.0,0.00019452,2]
[361779828,1747775442583,-453.94,0.00019452,2]
[361779830,1747775442592,-1865.77,0.00019452,2]
[361779832,1747775442602,-2263.91,0.00019452,2]
[361779834,1747775442611,-430.0,0.00019452,2]
[361779836,1747775442620,-430.0,0.00019452,2]
[361779838,1747775442631,-430.0,0.00019452,2]
[361779840,1747775442640,-232.6,0.00019452,2]
[361779842,1747775442649,-1962.0,0.00019452,2]
[361779844,1747775442658,-430.0,0.00019452,2]
[361779846,1747775442667,-526.49,0.00019452,2]
[361779848,1747775442677,-1558.65,0.00019452,2]
[361779850,1747775442686,-480.96,0.00019452,2]
[361779852,1747775442695,-596.99,0.00019452,2]
[361779854,1747775442704,-452.43,0.00019452,2]
[361779855,1747775442713,-543.73,0.00019452,2]
[361779857,1747775442722,-430.0,0.00019452,2]
[361779859,1747775442732,-669.88,0.00019452,2]
[361779861,1747775442740,-424.35,0.00019452,2]
[361779862,1747775442750,-430.0,0.00019452,2]
[361779864,1747775442759,-430.0,0.00019452,2]
[361779867,1747775442768,-430.0,0.00019452,2]
[361779869,1747775442777,-430.0,0.00019452,2]
[361779872,1747775442786,-483.74,0.00019452,2]
[361779875,1747775442796,-894.16,0.00019452,2]
[361779878,1747775442805,-998.6,0.00019452,2]
[361779880,1747775442814,-430.0,0.00019452,2]
[361779882,1747775442823,-430.0,0.00019452,2]
[361779884,1747775442832,-459.9,0.00019452,2]
[361779886,1747775442842,-573.65,0.00019452,2]
[361779889,1747775442851,-151.0,0.00019555,2]
[361779891,1747775442861,-587.0,0.00019631,2]
[361779893,1747775442870,-600.0,0.00019656,2]
[361779895,1747775442880,-502.49024987,0.00019656,2]
[361779896,1747775442890,-4309.86131901,0.00019693,2]
[361779898,1747775442899,-151.0,0.00019696,2]
[361779900,1747775442909,-500.0,0.00019712,2]
[361779902,1747775442918,-151.0,0.00019726,2]
[361779904,1747775442928,-184.28,0.00019726,2]
[361779906,1747775442938,-430.0,0.00019726,2]
[361779908,1747775442947,-446.13,0.00019726,2]
[361779910,1747775442956,-430.0,0.00019726,2]
[361779912,1747775442965,-430.0,0.00019726,2]
[361779914,1747775442975,-471.13,0.00019726,2]
[361779916,1747775442984,-1047.38,0.00019726,2]
[361779918,1747775442993,-268.39,0.00019726,2]
[361779920,1747775443003,-430.0,0.00019726,2]
[361779921,1747775443012,-430.0,0.00019726,2]
[361779923,1747775443021,-518.89,0.00019726,2]
[361779925,1747775443030,-430.0,0.00019726,2]
[361779927,1747775443040,-469.67,0.00019726,2]
[361779929,1747775443051,-803.42,0.00019726,2]
[361779931,1747775443060,-877.67,0.00019726,2]
[361779933,1747775443070,-430.0,0.00019726,2]
[361779935,1747775443079,-430.0,0.00019726,2]
[361779937,1747775443089,-453.94,0.00019726,2]
[361779939,1747775443098,-1865.77,0.00019726,2]
[361779941,1747775443107,-2263.91,0.00019726,2]
[361779943,1747775443116,-430.0,0.00019726,2]
[361779945,1747775443125,-430.0,0.00019726,2]
[361779947,1747775443137,-430.0,0.00019726,2]
[361779948,1747775443147,-1962.0,0.00019726,2]
[361779950,1747775443156,-430.0,0.00019726,2]
[361779952,1747775443165,-526.49,0.00019726,2]
[361779954,1747775443175,-1558.65,0.00019726,2]
[361779956,1747775443184,-480.96,0.00019726,2]
[361779958,1747775443193,-596.99,0.00019726,2]
[361779959,1747775443206,-452.43,0.00019726,2]
[361779961,1747775443216,-543.73,0.00019726,2]
[361779963,1747775443226,-430.0,0.00019726,2]
[361779965,1747775443235,-669.88,0.00019726,2]
[361779967,1747775443246,-430.0,0.00019726,2]
[361779969,1747775443255,-430.0,0.00019726,2]
[361779971,1747775443264,-430.0,0.00019726,2]
[361779973,1747775443274,-430.0,0.00019726,2]
[361779975,1747775443284,-483.74,0.00019726,2]
[361779977,1747775443294,-894.16,0.00019726,2]
[361779979,1747775443305,-998.6,0.00019726,2]
[361779981,1747775443315,-430.0,0.00019726,2]
[361779983,1747775443324,-430.0,0.00019726,2]
[361779984,1747775443333,-459.9,0.00019726,2]
[361779986,1747775443342,-573.65,0.00019726,2]
[361779988,1747775443351,-500.0,0.00019982,2]
[361779990,1747775443360,-430.0,0.0002,2]
[361779992,1747775443369,-446.13,0.0002,2]
[361779994,1747775443378,-430.0,0.0002,2]
[361779996,1747775443388,-157.9,0.0002,2]
[361779998,1747775443397,-430.0,0.0002,2]
[361780000,1747775443406,-471.13,0.0002,2]
[361780001,1747775443415,-1047.38,0.0002,2]
[361780003,1747775443425,-430.0,0.0002,2]
[361780005,1747775443434,-430.0,0.0002,2]
[361780007,1747775443443,-518.89,0.0002,2]
[361780009,1747775443452,-430.0,0.0002,2]
[361780010,1747775443461,-469.67,0.0002,2]
[361780011,1747775443471,-803.42,0.0002,2]
[361780012,1747775443479,-430.0,0.0002,2]
[361780013,1747775443488,-877.67,0.0002,2]
[361780014,1747775443498,-430.0,0.0002,2]
[361780016,1747775443507,-453.94,0.0002,2]
[361780018,1747775443516,-1865.77,0.0002,2]
[361780019,1747775443525,-2263.91,0.0002,2]
[361780021,1747775443535,-430.0,0.0002,2]
[361780023,1747775443544,-155.0,0.0002,2]
[361780025,1747775443553,-430.0,0.0002,2]
[361780027,1747775443562,-430.0,0.0002,2]
[361780028,1747775443572,-1962.0,0.0002,2]
[361780030,1747775443581,-430.0,0.0002,2]
[361780032,1747775443590,-526.49,0.0002,2]
[361780033,1747775443599,-1558.65,0.0002,2]
[361780035,1747775443609,-480.96,0.0002,2]
[361780037,1747775443618,-596.99,0.0002,2]
[361780039,1747775443628,-452.43,0.0002,2]
[361780041,1747775443638,-543.73,0.0002,2]
[361780043,1747775443647,-430.0,0.0002,2]
[361780045,1747775443656,-669.88,0.0002,2]
[361780046,1747775443665,-430.0,0.0002,2]
[361780048,1747775443675,-430.0,0.0002,2]
[361780050,1747775443684,-430.0,0.0002,2]
[361780052,1747775443693,-485.45819942,0.0002,2]
[361780054,1747775443702,-483.74,0.0002,2]
[361780055,1747775443711,-894.16,0.0002,2]
[361780057,1747775443720,-998.6,0.0002,2]
[361780059,1747775443730,-4000.0,0.0002,4]
[361780061,1747775443739,-243.82233915,0.0002,2]
[361780063,1747775443749,-430.0,0.0002,2]
[361780065,1747775443758,-459.9,0.0002,2]
[361780067,1747775443767,-573.65,0.0002,2]
[361780069,1747775443777,-3260.08877225,0.0002,30]
[361780071,1747775443786,-4309.86131901,0.00020003,2]
[361780073,1747775443796,-5000.0,0.00020026,2]
[361780074,1747775443805,-253.90233183,0.00020093,2]
[361780075,1747775443814,-296.60997948,0.00020109,2]
[361780076,1747775443823,-151.0,0.00020142,2]
[361780077,1747775443833,-151.0,0.00020142,2]
[361780078,1747775443842,-4417.0,0.00020142,2]
[361780079,1747775443851,-207.4,0.00020142,2]
[361780080,1747775443861,-257.632173,0.00020187,2]
[361780081,1747775443870,-1200.0,0.00020204,2]
[361780082,1747775443880,-1000.0,0.0002026,2]
[361780083,1747775443889,-151.0,0.00020273,2]
[361780084,1747775443898,-151.0,0.00020273,2]